bitfinex-derivatives/quotes_ETHF0:USTF0_20250709
["timestamp","ask_amount","ask_price","bid_price","bid_amount"]
[1752041912413,2.05049,2625.7,2625.6,2.38622]
[1752041912713,0.6634,2625.7,2625.6,2.38622]
[1752041912918,0.6634,2625.7,2625.6,3.74122]
[1752041913208,0.76149,2626.1,2625.6,2.9796]
[1752041913413,1.42119,2626.1,2625.9,0.76151]
[1752041913608,2.04669,2626.1,2626.0,1.3978]
[1752041914510,2.04669,2626.1,2626.0,0.6363]
[1752041914715,0.7615,2626.0,2625.9,0.76152]
[1752041914913,1.387,2626.0,2625.9,1.39782]
[1752041916516,1.387,2626.0,2625.9,0.6363]
[1752041917314,0.6597,2626.1,2625.9,1.6246]
[1752041917614,0.6597,2626.1,2626.0,2.04247239]
[1752041917810,0.6597,2626.1,2626.0,5.02147239]
[1752041918417,0.6597,2626.1,2626.0,3.66707239]
[1752041918817,1.2852,2626.1,2626.0,3.66707239]
[1752041919219,0.6597,2626.1,2626.0,3.66707239]
[1752041922314,0.76138,2626.5,2626.4,0.76138]
[1752041922620,1.38688,2626.5,2626.4,0.6363]
[1752041922811,0.76139,2626.4,2626.3,2.04237239]
[1752041923014,0.76139,2626.4,2626.3,2.67867239]
[1752041923215,0.76139,2626.4,2626.3,3.66697239]
[1752041924013,0.76139,2626.4,2626.3,2.386]
[1752041924319,1.38689,2626.4,2626.3,2.386]
[1752041924513,0.76139,2626.4,2626.3,2.386]
[1752041924713,1.38689,2626.4,2626.3,2.386]
[1752041925117,0.6255,2626.4,2626.3,2.386]
[1752041925314,1.38689,2626.4,2626.3,2.386]
[1752041926124,1.38689,2626.4,2626.3,1.4396]
[1752041926623,0.6255,2626.4,2626.3,1.4396]
[1752041926923,0.76139,2626.4,2626.3,1.6665]
[1752041927223,1.41449,2626.4,2626.3,1.6665]
[1752041927419,1.41449,2626.4,2626.3,2.42792]
[1752041927620,0.6531,2626.4,2626.3,2.42792]
[1752041927919,1.41449,2626.4,2626.3,2.42792]
[1752041928417,1.41449,2626.4,2626.3,1.43962]
[1752041928922,1.41449,2626.4,2626.3,0.76142]
[1752041929118,0.76142,2626.3,2626.2,0.76142]
[1752041929320,2.72062,2626.3,2626.2,0.76142]
[1752041929514,2.72062,2626.3,2626.2,1.43962]
[1752041930522,2.72062,2626.3,2626.2,0.6782]
[1752041930723,2.72062,2626.3,2626.2,1.43965]
[1752041931230,0.76149,2626.1,2626.0,0.76148]
[1752041931522,4.21357239,2626.3,2626.1,0.76148]
[1752041931523,2.75566,2626.2,2626.1,0.76148]
[1752041931722,3.40876,2626.2,2626.1,1.43968]
[1752041932224,3.40875,2626.2,2626.1,0.76148]
[1752041932425,3.40875,2626.2,2626.1,1.43968]
[1752041933823,3.40875,2626.2,2626.1,0.6782]
[1752041934525,3.40875,2626.2,2626.1,1.43968]
[1752041936026,0.76145,2626.2,2626.1,2.72065239]
[1752041936324,0.76132,2626.7,2626.5,0.76134]
[1752041936522,0.6531,2626.6,2626.5,1.43954]
[1752041937127,0.76129,2626.8,2626.7,0.7613]
[1752041937429,1.9723,2626.8,2626.7,1.4395]
[1752041937831,1.9723,2626.8,2626.7,0.7613]
[1752041938128,1.9723,2626.8,2626.7,1.4395]
[1752041938326,2.73357,2626.8,2626.7,1.4395]
[1752041938527,1.9723,2626.8,2626.7,1.4395]
[1752041939531,0.6548,2626.9,2626.8,0.76127]
[1752041939726,1.3079,2626.9,2626.8,0.76127]
[1752041939929,1.3079,2626.9,2626.8,1.43947]
[1752041940125,1.3079,2626.9,2626.8,0.76127]
[1752041940126,0.6548,2626.9,2626.8,0.76127]
[1752041940330,1.3079,2626.9,2626.8,1.43947]
[1752041940835,1.3079,2626.9,2626.8,3.73534239]
[1752041941833,0.6548,2626.9,2626.8,3.73534239]
[1752041942132,1.9025,2627.8,2626.7,3.2078]
[1752041942133,3.2078,2627.7,2626.7,3.2078]
[1752041942329,1.28097239,2627.3,2626.7,5.16697239]
[1752041942528,0.76124,2627.0,2626.8,0.76126]
[1752041942729,0.7613,2626.7,2626.6,2.24397699]
[1752041942932,0.76133,2626.6,2626.5,2.24397699]
[1752041943131,1.8952,2626.6,2626.5,2.24397699]
[1752041943330,2.65653,2626.6,2626.5,2.24397699]
[1752041944337,0.76136,2626.5,2626.4,5.45177699]
[1752041944528,2.08506,2626.5,2626.4,3.2078]
[1752041944729,2.08506,2626.5,2626.4,3.886]
[1752041945333,0.76136,2626.5,2626.4,3.886]
[1752041945534,2.08506,2626.5,2626.4,3.886]
[1752041945932,2.08506,2626.5,2626.4,4.64739]
[1752041946338,2.08506,2626.5,2626.4,3.96919]
[1752041946540,2.73816,2626.5,2626.4,4.64739]
[1752041947242,1.40375,2626.6,2626.4,4.64739]
[1752041947438,0.6531,2626.5,2626.4,6.89136699]
[1752041947638,0.6424,2626.6,2626.5,0.76136]
[1752041947839,0.6424,2626.6,2626.5,2.72053239]
[1752041948239,1.2955,2626.6,2626.5,2.72053239]
[1752041948439,2.05683,2626.6,2626.5,2.72053239]
[1752041948644,1.2955,2626.6,2626.5,2.72053239]
[1752041948845,2.05683,2626.6,2626.5,4.96450938]
[1752041949144,1.2955,2626.6,2626.5,4.96450938]
[1752041949333,1.2955,2626.6,2626.5,2.72053239]
[1752041949537,1.2955,2626.6,2626.5,2.04233239]
[1752041949733,2.05683,2626.6,2626.5,2.72053239]
[1752041949933,2.05683,2626.6,2626.5,1.95917239]
[1752041950139,2.05683,2626.6,2626.5,2.04233239]
[1752041950334,2.05683,2626.6,2626.5,1.95917239]
[1752041950740,0.76136,2626.5,2626.4,2.24397699]
[1752041950938,2.78286,2626.5,2626.4,2.24397699]
[1752041951244,2.78286,2626.5,2626.4,3.00536699]
[1752041951441,2.78286,2626.5,2626.4,3.68356699]
[1752041952444,1.41446,2626.5,2626.4,2.92217699]
[1752041952642,1.41446,2626.5,2626.4,0.6782]
[1752041953039,2.75406,2626.5,2626.4,0.6782]
[1752041954741,0.76142,2626.3,2626.2,2.24397699]
[1752041954936,1.41452,2626.3,2626.2,2.92217699]
[1752041955142,1.41452,2626.3,2626.2,2.24397699]
[1752041955343,1.41452,2626.3,2626.2,2.92217699]
[1752041955543,1.41452,2626.3,2626.2,3.68362699]
[1752041956344,0.6531,2626.3,2626.2,1.43965]
[1752041956649,0.6531,2626.3,2626.2,2.45455]
[1752041957048,0.7614,2626.4,2626.3,0.76142]
[1752041957248,0.76138,2626.5,2626.4,0.76136]
[1752041957548,0.76138,2626.5,2626.4,0.648]
[1752041957549,1.44018,2626.5,2626.4,0.648]
[1752041958050,1.44018,2626.5,2626.4,1.6742]
[1752041958346,0.6788,2626.5,2626.4,2.43559]
[1752041959053,1.40375,2626.6,2626.5,0.76136]
[1752041959247,0.6424,2626.6,2626.5,3.71653239]
[1752041959649,3.21351026,2626.8,2626.7,0.7613]
[1752041959851,0.00571026,2626.8,2626.7,2.69027239]
[1752041960053,0.00571026,2626.8,2626.7,3.71647239]
[1752041960445,0.00571026,2626.8,2626.7,4.95997239]
[1752041960750,0.68451026,2626.8,2626.7,4.95997239]
[1752041961252,0.00571026,2626.8,2626.7,4.95997239]
[1752041961448,0.00571026,2626.8,2626.7,9.85633904]
[1752041963051,0.00571026,2626.8,2626.7,10.41975292]
[1752041963844,1.2564,2627.6,2626.9,0.76124]
[1752041964046,1.43547,2627.5,2627.4,1.28097239]
[1752041964251,1.43547,2627.5,2627.4,5.89787239]
[1752041964252,0.6744,2627.5,2627.4,5.89787239]
[1752041964653,1.3532,2627.5,2627.4,5.89787239]
[1752041965755,1.3532,2627.5,2627.4,6.92407239]
[1752041966145,0.6744,2627.5,2627.4,6.92407239]
[1752041968055,0.76102,2627.7,2627.6,0.76104]
[1752041968257,0.6788,2627.7,2627.6,3.71621239]
[1752041968456,0.76101,2627.7,2627.6,3.71621239]
[1752041968758,1.43981,2627.7,2627.6,3.71621239]
[1752041969060,0.6849,2627.8,2627.7,0.76101]
[1752041969351,2.12468,2627.8,2627.7,1.40901]
[1752041969558,1.44588,2627.8,2627.7,1.40901]
[1752041969960,0.6849,2627.8,2627.7,1.40901]
[1752041970260,0.6849,2627.8,2627.7,2.68998239]
[1752041970658,1.3637,2627.8,2627.7,2.68998239]
[1752041970858,1.3637,2627.8,2627.7,3.71618239]
[1752041971059,0.76091,2628.1,2628.0,0.76092]
[1752041971257,0.76091,2628.1,2628.0,1.92897239]
[1752041971461,1.43971,2628.1,2628.0,0.648]
[1752041971955,0.76091,2628.1,2628.0,0.648]
[1752041972752,1.43971,2628.1,2628.0,0.648]
[1752041973358,1.43971,2628.1,2628.0,1.40892]
[1752041973554,3.2078,2628.4,2628.0,2.95517239]
[1752041973758,6.66537279,2629.6,2628.3,4.48877239]
[1752041973759,0.7607,2628.8,2628.3,4.48877239]
[1752041974070,0.6788,2628.8,2628.7,0.648]
[1752041974265,2.38711,2628.8,2628.4,1.68820899]
[1752041974463,2.38711,2628.8,2628.3,2.45475925]
[1752041974464,0.76081,2628.5,2628.3,2.45475925]
[1752041974759,0.7608,2628.5,2628.3,1.41453026]
[1752041974964,0.7608,2628.5,2628.3,0.65371026]
[1752041975158,0.76077,2628.6,2628.3,0.65371026]
[1752041975360,0.76079,2628.5,2628.3,1.41455026]
[1752041975557,1.43961,2628.4,2628.3,1.41455026]
[1752041975758,0.6788,2628.4,2628.3,1.41455026]
[1752041976061,0.6788,2628.4,2628.3,2.44075026]
[1752041976262,0.6788,2628.4,2628.3,5.64855026]
[1752041977158,0.6526,2628.7,2628.3,4.88771026]
[1752041977355,0.6526,2628.7,2628.6,0.76075]
[1752041977559,0.6526,2628.7,2628.6,5.64275]
[1752041978562,0.6526,2628.7,2628.6,7.01985]
[1752041978763,0.76062,2629.1,2628.6,7.01985]
[1752041978960,1.3552,2629.3,2628.6,7.01985]
[1752041978961,1.5704,2629.0,2628.7,0.7607]
[1752041979164,1.43949,2628.8,2628.7,0.648]
[1752041980062,0.6228,2629.0,2628.7,0.648]
[1752041980267,0.6228,2629.0,2628.9,2.04163239]
[1752041980567,2.06224,2629.0,2628.9,2.68963239]
[1752041980868,2.06224,2629.0,2628.9,1.40866]
[1752041981166,0.76068,2628.9,2628.7,1.28097239]
[1752041981468,0.6788,2628.8,2628.7,2.68969239]
[1752041981767,1.43949,2628.8,2628.6,3.96854]
[1752041981969,0.76072,2628.7,2628.6,3.96854]
[1752041982167,1.43952,2628.7,2628.6,4.61654]
[1752041982459,1.43952,2628.7,2628.6,3.8558]
[1752041982666,0.76071,2628.8,2628.6,3.96855]
[1752041982863,0.76072,2628.7,2628.6,3.2078]
[1752041984366,0.76071,2628.8,2628.6,3.96853]
[1752041984575,0.76072,2628.7,2628.6,3.2078]
[1752041985066,0.76072,2628.7,2628.6,3.96855]
[1752041985367,0.76072,2628.7,2628.6,3.2078]
[1752041986369,0.76072,2628.7,2628.6,3.96855]
[1752041986764,0.76072,2628.7,2628.6,3.2078]
[1752041987265,0.76072,2628.7,2628.6,3.96855]
[1752041987570,2.04041,2628.8,2628.7,0.76072]
[1752041987769,0.76072,2628.7,2628.6,3.96854]
[1752041987974,2.04042,2628.7,2628.6,3.96854]
[1752041990069,0.76076,2628.6,2628.3,3.21351026]
[1752041990272,2.74066,2628.6,2628.5,0.76076]
[1752041990463,2.74066,2628.6,2628.3,4.49448265]
[1752041990668,0.76079,2628.5,2628.4,0.76079]
[1752041991476,2.74067,2628.6,2628.5,0.76078]
[1752041992274,1.43427,2628.6,2628.5,0.76078]
[1752041992569,1.43427,2628.6,2628.5,2.04175239]
[1752041992969,0.6735,2628.6,2628.5,2.04175239]
[1752041995878,1.43425,2628.6,2628.5,2.04175239]
[1752041996577,0.6735,2628.6,2628.5,2.04175239]
[1752041997376,0.6735,2628.6,2628.5,3.72996138]
[1752041998577,1.43425,2628.6,2628.5,3.72996138]
[1752041999479,0.6735,2628.6,2628.5,2.04175239]
[1752041999778,1.43425,2628.6,2628.5,2.04175239]
[1752042000276,1.43425,2628.6,2628.5,2.96298998]
[1752042000472,1.43425,2628.6,2628.5,2.96417805]
[1752042001074,1.43425,2628.6,2628.5,3.72495805]
[1752042001479,1.43425,2628.6,2628.5,2.04175239]
[1752042001778,1.43425,2628.6,2628.5,4.29373292]
[1752042001779,0.6735,2628.6,2628.5,4.29373292]
[1752042002179,1.43425,2628.6,2628.5,4.29373292]
[1752042002381,1.43425,2628.6,2628.5,2.04175239]
[1752042002880,0.6735,2628.6,2628.5,2.04175239]
[1752042003271,0.6735,2628.6,2628.5,5.41496133]
[1752042004575,0.6735,2628.6,2628.5,2.04175239]
[1752042005572,1.2569,2629.1,2628.5,2.04175239]
[1752042005778,1.38835,2629.0,2628.9,2.25052274]
[1752042006881,1.38835,2629.0,2628.9,3.53149513]
[1752042007477,1.38835,2629.0,2628.9,1.28097239]
[1752042009985,0.76066,2628.9,2628.8,2.25052274]
[1752042010186,2.10936,2628.9,2628.8,2.25052274]
[1752042012086,0.76072,2628.7,2628.6,2.25052274]
[1752042012281,0.76075,2628.6,2628.5,6.58358411]
[1752042012480,1.42165,2628.6,2628.5,3.2078]
[1752042018087,1.42165,2628.6,2628.5,3.96858]
[1752042018382,1.42165,2628.6,2628.5,3.2078]
[1752042018888,1.42165,2628.6,2628.5,3.96858]
[1752042019186,1.42165,2628.6,2628.5,3.2078]
[1752042019382,1.42165,2628.6,2628.5,3.96858]
[1752042020386,1.42165,2628.6,2628.5,3.2078]
[1752042023589,0.76078,2628.5,2628.4,3.37578411]
[1752042023783,2.02968,2628.5,2628.4,3.37578411]
[1752042025593,7.02968,2628.5,2628.4,1.68960588]
[1752042026192,0.76081,2628.4,2628.3,1.69531614]
[1752042026395,3.41518239,2628.4,2628.3,1.69531614]
[1752042026593,8.41518239,2628.4,2628.3,1.69531614]
[1752042027090,8.41518239,2628.4,2628.3,1.69523072]
[1752042027691,8.41518239,2628.4,2628.3,0.00571026]
[1752042028089,2.13421,2628.4,2628.3,1.28668265]
[1752042028289,0.76081,2628.4,2628.3,2.04752265]
[1752042028485,0.76081,2628.4,2628.3,5.25532265]
[1752042029090,0.7608,2628.5,2628.4,0.7608]
[1752042029290,0.7608,2628.5,2628.4,1.6880071]
[1752042031593,0.7608,2628.5,2628.4,2.4488171]
[1752042033198,0.76078,2628.5,2628.4,2.4487871]
[1752042034599,0.76078,2628.5,2628.4,1.6880071]
[1752042035299,0.76081,2628.4,2628.3,4.90151736]
[1752042037902,0.76081,2628.4,2628.3,1.69371736]
[1752042038099,0.76081,2628.4,2628.3,4.90151736]
[1752042038299,0.76081,2628.4,2628.3,4.9016739]
[1752042040596,0.76081,2628.4,2628.3,1.6938739]
[1752042040797,0.76081,2628.4,2628.3,0.00571026]
[1752042041197,2.00261,2628.4,2628.3,0.00571026]
[1752042041701,0.76087,2628.2,2628.1,1.68816364]
[1752042042003,0.7609,2628.1,2628.0,1.68816364]
[1752042042198,0.76092,2628.0,2627.9,4.89596364]
[1752042042401,2.04189239,2628.0,2627.9,4.89596364]
[1752042042597,3.28369239,2628.0,2627.9,4.89596364]
[1752042044203,3.28369239,2628.0,2627.9,3.2078]
[1752042044801,11.15269239,2628.0,2627.9,3.2078]
[1752042046197,9.87172,2628.0,2627.9,3.2078]
[1752042046398,11.15269239,2628.0,2627.9,3.2078]
[1752042048405,3.28369239,2628.0,2627.9,3.2078]
[1752042048604,11.15369239,2628.0,2627.9,3.2078]
[1752042050006,3.28369239,2628.0,2627.9,3.2078]
[1752042050199,9.87272,2628.0,2627.9,3.2078]
[1752042050704,8.63092,2628.0,2627.9,3.2078]
[1752042051996,3.2078,2628.5,2627.9,3.2078]
[1752042051997,3.39715822,2628.9,2628.7,0.76072]
[1752042052200,3.1952033,2629.2,2629.1,0.76061]
[1752042052407,19.2298,2631.1,2629.1,9.48877239]
[1752042052599,1.2666,2630.9,2630.1,3.2078]
[1752042052804,9.31997239,2630.8,2630.0,4.48877239]
[1752042053001,1.28097239,2630.6,2630.1,1.72818475]
[1752042053303,4.5394,2630.7,2630.2,1.72476888]
[1752042053500,8.04,2630.6,2630.3,5.69281888]
[1752042053806,8.04,2630.6,2630.4,1.7246295]
[1752042054008,8.04,2630.6,2630.3,3.2078]
[1752042054009,16.08,2630.8,2630.5,1.28097239]
[1752042054304,16.08,2630.8,2630.6,0.76017]
[1752042054606,16.08,2630.8,2630.6,3.2078]
[1752042055198,1.3316,2631.3,2630.6,3.2078]
[1752042055402,1.3316,2631.3,2630.9,4.48877239]
[1752042055598,2.09159,2631.3,2630.9,5.24886239]
[1752042055798,0.75999,2631.3,2630.9,4.48877239]
[1752042056004,8.047,2631.2,2630.9,4.48877239]
[1752042056200,40.8,2631.4,2630.9,5.79827239]
[1752042056403,8.046,2631.3,2630.9,5.79827239]
[1752042056613,20.93177239,2631.5,2630.9,5.79827239]
[1752042056614,0.76004,2631.1,2630.9,5.79827239]
[1752042056814,0.76004,2631.1,2630.9,4.5173]
[1752042057208,8.80502,2631.2,2630.9,4.5173]
[1752042057414,0.76003,2631.1,2630.9,4.5173]
[1752042057817,8.80206,2631.0,2630.9,3.2078]
[1752042058013,0.76017,2630.6,2630.5,3.2078]
[1752042058212,0.76017,2630.6,2630.5,4.95196353]
[1752042059611,0.76017,2630.6,2630.5,4.96165654]
[1752042060318,0.76017,2630.6,2630.5,3.2078]
[1752042060811,0.76017,2630.6,2630.5,3.71707468]
[1752042061005,0.76017,2630.6,2630.5,3.89027496]
[1752042061211,0.76017,2630.6,2630.5,3.38100028]
[1752042061416,0.76017,2630.6,2630.5,0.68216895]
[1752042064010,8.78717,2630.6,2630.5,0.68216895]
[1752042066216,8.77917,2630.6,2630.5,0.68216895]
[1752042067120,0.76017,2630.6,2630.5,0.68216895]
[1752042067519,8.77517,2630.6,2630.5,0.68216895]
[1752042068020,0.76016,2630.7,2630.5,1.44236895]
[1752042068220,0.76016,2630.7,2630.6,0.68216895]
[1752042068817,8.77416,2630.7,2630.6,0.68216895]
[1752042069017,0.76016,2630.7,2630.6,0.68216895]
[1752042069519,8.77116,2630.7,2630.6,0.68216895]
[1752042069921,0.76017,2630.6,2630.5,1.2724]
[1752042070121,0.76017,2630.6,2630.5,1.97091487]
[1752042071120,3.2078,2631.1,2630.5,1.97091487]
[1752042071327,8.006,2631.2,2630.7,3.2078]
[1752042071621,0.76009,2630.9,2630.8,2.01951487]
[1752042072418,0.76009,2630.9,2630.8,0.69851487]
[1752042073023,2.70189,2630.9,2630.8,0.69851487]
[1752042073620,0.7602,2630.5,2630.4,3.2078]
[1752042074021,0.7602,2630.5,2630.4,4.1789]
[1752042074919,2.1013,2630.5,2630.4,4.1789]
[1752042075622,2.1013,2630.5,2630.4,3.2078]
[1752042076023,0.76029,2630.2,2630.1,0.9711]
[1752042076823,0.76038,2629.9,2629.8,4.88700392]
[1752042077026,0.76038,2629.9,2629.8,5.36707921]
[1752042077224,0.76038,2629.9,2629.8,8.32388313]
[1752042077423,0.76038,2629.9,2629.8,9.29498313]
[1752042077625,0.76038,2629.9,2629.8,8.01738313]
[1752042078225,0.76038,2629.9,2629.8,8.02051681]
[1752042078625,0.76038,2629.9,2629.8,6.33817921]
[1752042080326,0.76038,2629.9,2629.8,8.02051681]
[1752042080723,0.76038,2629.9,2629.8,6.33817921]
[1752042081224,0.76038,2629.9,2629.8,8.59065802]
[1752042081823,0.76038,2629.9,2629.8,7.61955802]
[1752042082018,3.80096,2630.6,2629.8,7.61955802]
[1752042082019,19.2108,2630.4,2629.8,8.59065802]
[1752042082224,0.76023,2630.4,2630.3,1.69268801]
[1752042082419,0.76023,2630.4,2630.3,2.15927921]
[1752042082420,2.72533,2630.4,2630.3,2.15927921]
[1752042082624,2.72533,2630.4,2630.3,1.80493444]
[1752042083626,2.72533,2630.4,2630.3,3.49762245]
[1752042084427,2.72533,2630.4,2630.3,1.80493444]
[1752042085033,0.76023,2630.4,2630.3,8.23631325]
[1752042085231,0.76023,2630.4,2630.3,2.77603444]
[1752042085628,0.76023,2630.4,2630.3,3.46513444]
[1752042086026,1.39223,2630.4,2630.3,2.49403444]
[1752042086529,1.39223,2630.4,2630.3,4.75673314]
[1752042087228,1.39223,2630.4,2630.3,4.75754671]
[1752042087629,1.39223,2630.4,2630.3,2.49403444]
[1752042087835,2.01343,2630.4,2630.3,2.49403444]
[1752042088030,2.01343,2630.4,2630.3,1.80493444]
[1752042090137,46.02123,2630.4,2630.3,1.80493444]
[1752042090330,51.98973,2630.4,2630.3,0.77153444]
[1752042091434,51.98973,2630.4,2629.8,3.37578411]
[1752042091435,0.76038,2629.9,2629.8,3.37578411]
[1752042091633,0.7604,2629.8,2629.7,6.58358411]
[1752042091829,0.7604,2629.8,2629.7,8.24378411]
[1752042092339,0.7604,2629.8,2629.7,4.868]
[1752042092940,0.7604,2629.8,2629.7,8.24378411]
[1752042093938,0.7604,2629.8,2629.7,4.868]
[1752042095040,0.7604,2629.8,2629.7,8.24378411]
[1752042096040,0.7604,2629.8,2629.7,7.27268411]
[1752042096244,0.7604,2629.8,2629.7,3.8969]
[1752042096445,0.7604,2629.8,2629.7,4.868]
[1752042097041,0.7604,2629.8,2629.7,9.59668411]
[1752042098243,0.7604,2629.8,2629.7,6.2209]
[1752042098842,8.7464,2629.8,2629.7,6.2209]
[1752042099150,0.7604,2629.8,2629.7,6.2209]
[1752042099349,8.7444,2629.8,2629.7,6.2209]
[1752042100044,8.7434,2629.8,2629.7,6.2209]
[1752042100751,8.7434,2629.8,2629.7,4.868]
[1752042101141,9.432,2629.8,2629.7,4.868]
[1752042101342,9.432,2629.8,2629.7,3.2078]
[1752042101551,9.432,2629.8,2629.7,3.883]
[1752042101753,11.4369,2629.8,2629.7,3.883]
[1752042101946,11.4369,2629.8,2629.7,0.6752]
[1752042102646,9.3825,2629.8,2629.7,0.6752]
[1752042102856,16.43,2630.1,2629.7,4.8619]
[1752042103048,0.7604,2629.8,2629.7,4.8619]
[1752042103248,0.7604,2629.8,2629.7,8.99811411]
[1752042103451,0.76039,2629.9,2629.7,10.65088618]
[1752042103648,0.76039,2629.9,2629.8,2.63167207]
[1752042103851,0.76039,2629.9,2629.8,3.30687207]
[1752042105149,1.44899,2629.9,2629.8,2.32797207]
[1752042106550,2.74379,2629.9,2629.8,1.65277207]
[1752042106751,2.74379,2629.9,2629.8,2.32797207]
[1752042107948,5.39164865,2629.9,2629.8,2.32797207]
[1752042109049,6.35934865,2629.9,2629.8,1.65277207]
[1752042109551,0.76049,2629.5,2629.4,7.56248411]
[1752042109848,8.73549,2629.5,2629.4,8.23768411]
[1752042111249,8.73549,2629.5,2629.4,0.6752]
[1752042111548,9.42409,2629.5,2629.4,0.6752]
[1752042112856,0.76055,2629.3,2629.2,3.37578411]
[1752042113053,0.76058,2629.2,2629.1,6.58358411]
[1752042113254,0.76058,2629.2,2629.1,8.23768411]
[1752042113847,1.44918,2629.2,2629.1,8.23768411]
[1752042114153,0.76058,2629.2,2629.1,4.8619]
[1752042114350,1.44918,2629.2,2629.1,4.8619]
[1752042114545,0.76058,2629.2,2629.1,4.8619]
[1752042114751,1.44918,2629.2,2629.1,4.8619]
[1752042115154,1.44918,2629.2,2629.1,3.883]
[1752042115958,0.6886,2629.2,2629.1,0.6752]
[1752042116159,0.76064,2629.0,2628.9,3.37578411]
[1752042116353,9.41624,2629.0,2628.9,4.05098411]
[1752042116553,9.41624,2629.0,2628.8,7.56248411]
[1752042116554,0.76066,2628.9,2628.8,7.56248411]
[1752042117051,0.76066,2628.9,2628.8,8.23768411]
[1752042117256,8.72666,2628.9,2628.8,8.23768411]
[1752042117459,9.41526,2628.9,2628.8,4.8619]
[1752042118861,9.41526,2628.9,2628.8,3.883]
[1752042119562,9.41526,2628.9,2628.8,3.2078]
[1752042119959,9.41526,2628.9,2628.8,3.883]
[1752042120161,9.41526,2628.9,2628.8,3.2078]
[1752042120354,10.38296,2628.9,2628.8,3.883]
[1752042120758,10.10366,2628.9,2628.8,3.883]
[1752042121162,12.36896,2628.9,2628.8,0.6752]
[1752042122157,0.76075,2628.6,2628.5,5.47334817]
[1752042122460,2.41705,2628.6,2628.5,5.47334817]
[1752042122651,2.41705,2628.6,2628.5,3.2078]
[1752042122652,1.44935,2628.6,2628.5,3.2078]
[1752042122858,3.75515,2628.6,2628.5,3.883]
[1752042123158,2.78745,2628.6,2628.5,3.883]
[1752042123962,3.75515,2628.6,2628.5,3.883]
[1752042124758,2.78745,2628.6,2628.5,3.883]
[1752042125364,2.78745,2628.6,2628.5,0.6752]
[1752042126962,4.18924401,2628.6,2628.5,0.6752]
[1752042127466,5.15694401,2628.6,2628.5,0.6752]
[1752042127963,5.15694401,2628.6,2628.1,3.2078]
[1752042127964,0.76087,2628.2,2628.1,3.2078]
[1752042128165,9.38747,2628.2,2628.1,3.2078]
[1752042128365,9.38747,2628.2,2628.1,3.8397]
[1752042128565,9.38747,2628.2,2628.1,0.6319]
[1752042128866,0.76095,2627.9,2627.8,3.2078]
[1752042129060,2.84034401,2627.9,2627.8,3.8397]
[1752042130761,1.43855,2627.9,2627.8,3.8397]
[1752042131069,0.76107,2627.5,2627.4,2.26554817]
[1752042131268,1.43867,2627.5,2627.4,0.6319]
[1752042131462,0.6776,2627.5,2627.2,0.9485]
[1752042131661,2.58029,2627.5,2627.1,4.531]
[1752042131860,1.43867,2627.5,2627.4,0.6319]
[1752042132666,2.40017,2627.5,2627.4,0.6319]
[1752042133566,1.43867,2627.5,2627.4,0.6319]
[1752042134866,9.38367,2627.5,2627.4,0.6319]
[1752042136659,9.38167,2627.5,2627.4,0.6319]
[1752042137364,0.6776,2627.5,2627.1,4.1563]
[1752042137568,0.76107,2627.5,2627.4,0.6319]
[1752042137759,9.37767,2627.5,2627.4,0.6319]
[1752042138869,0.76113,2627.3,2627.2,2.2142]
[1752042139166,0.76116,2627.2,2627.1,3.2078]
[1752042139367,0.76116,2627.2,2627.1,3.8397]
[1752042139570,1.43876,2627.2,2627.1,3.8397]
[1752042139869,0.76116,2627.2,2627.1,4.7882]
[1752042140477,0.76116,2627.2,2627.1,6.90669]
[1752042140767,0.76116,2627.2,2627.1,6.1455]
[1752042140969,0.76116,2627.2,2627.1,2.9377]
[1752042141170,0.76121,2627.0,2626.9,0.76123]
[1752042141372,0.76121,2627.0,2626.9,5.10714817]
[1752042141572,0.76124,2626.9,2626.8,3.96907]
[1752042141774,0.76124,2626.9,2626.8,6.81067]
[1752042142072,0.76124,2626.9,2626.8,5.1009]
[1752042142271,1.43884,2626.9,2626.8,5.1009]
[1752042142670,1.43884,2626.9,2626.8,3.2078]
[1752042143168,1.43884,2626.9,2626.8,3.8397]
[1752042143772,0.76132,2626.7,2626.5,6.23468817]
[1752042144072,1.43893,2626.7,2626.6,0.6319]
[1752042144567,0.6776,2626.7,2626.6,1.39323]
[1752042145070,1.4389,2626.7,2626.6,1.39323]
[1752042145470,1.43892,2626.7,2626.6,0.6319]
[1752042145773,2.2057,2627.0,2626.7,0.76129]
[1752042145970,0.6776,2626.8,2626.7,0.76129]
[1752042146175,8.69223,2627.0,2626.9,0.76124]
[1752042146376,0.76121,2627.1,2627.0,0.76121]
[1752042146772,0.76118,2627.2,2627.0,0.76121]
[1752042147074,7.932,2627.2,2627.0,0.76121]
[1752042147273,0.76119,2627.1,2627.0,0.76121]
[1752042148070,1.41354,2627.3,2627.2,0.76116]
[1752042148271,0.76117,2627.2,2627.1,0.76117]
[1752042148671,1.41355,2627.3,2627.2,0.76116]
[1752042149171,2.09115,2627.3,2627.2,1.39306]
[1752042149365,1.41355,2627.3,2627.2,1.39306]
[1752042149571,1.41353,2627.3,2627.2,1.39306]
[1752042150583,2.09113,2627.3,2627.2,0.6319]
[1752042150776,2.09113,2627.3,2627.2,1.39306]
[1752042151382,2.09113,2627.3,2627.2,0.6319]
[1752042151583,2.09113,2627.3,2627.2,1.39306]
[1752042152178,0.76116,2627.2,2627.1,2.46153746]
[1752042152581,0.76116,2627.2,2627.1,3.09343746]
[1752042153085,1.43876,2627.2,2627.1,3.09343746]
[1752042154186,1.43876,2627.2,2627.1,1.39307]
[1752042154384,1.43876,2627.2,2627.1,0.6319]
[1752042154785,0.76116,2627.2,2627.1,0.6319]
[1752042154984,0.76116,2627.2,2627.1,2.34159]
[1752042155187,0.76116,2627.2,2627.1,5.96043817]
[1752042155580,0.76116,2627.2,2627.1,5.01193817]